[Event "Early-Titled-Tuesday-Blitz-July-09-2024"]
[Site "Chess.com"]
[Date "2024.07.09"]
[Round "8"]
[White "dapsay"]
[Black "Losingexperience"]
[Result "0-1"]
[WhiteElo "2567"]
[BlackElo "2722"]
[TimeControl "180+1"]
[EndTime "9:24:58 PDT"]
[Termination "Losingexperience won by resignation"]

1. e4 {[%clk 0:03:00.9]} 1... c5 {[%clk 0:02:59.7]} 2. Nf3 {[%clk 0:02:59.3]}
2... d6 {[%clk 0:03:00.1]} 3. d4 {[%clk 0:02:59.1]} 3... cxd4 {[%clk 0:03:01]}
4. Qxd4 {[%clk 0:02:59.6]} 4... Nc6 {[%clk 0:03:01]} 5. Bb5 {[%clk 0:02:59.7]}
5... Bd7 {[%clk 0:03:00.8]} 6. Bxc6 {[%clk 0:03:00.6]} 6... Bxc6 {[%clk
0:03:01.7]} 7. Nc3 {[%clk 0:03:01.1]} 7... Nf6 {[%clk 0:03:02]} 8. Bg5 {[%clk
0:03:01.1]} 8... e6 {[%clk 0:03:02.5]} 9. O-O-O {[%clk 0:03:01.2]} 9... Be7
{[%clk 0:03:02.5]} 10. Qd3 {[%clk 0:03:01.6]} 10... O-O {[%clk 0:03:00.9]} 11.
Nd4 {[%clk 0:03:01.8]} 11... Qa5 {[%clk 0:02:59.9]} 12. f4 {[%clk 0:03:02]}
12... Rfc8 {[%clk 0:02:58.7]} 13. h4 {[%clk 0:03:01.9]} 13... Be8 {[%clk
0:02:57.6]} 14. Kb1 {[%clk 0:03:00.5]} 14... b5 {[%clk 0:02:57.8]} 15. Nb3
{[%clk 0:02:51.8]} 15... Qc7 {[%clk 0:02:54.6]} 16. Rd2 {[%clk 0:02:34.4]} 16...
a5 {[%clk 0:02:54.3]} 17. Nxb5 {[%clk 0:02:31.9]} 17... Bxb5 {[%clk 0:02:53.9]}
18. Qxb5 {[%clk 0:02:30.6]} 18... Nxe4 {[%clk 0:02:49.1]} 19. Re2 {[%clk
0:02:19.3]} 19... Ng3 {[%clk 0:02:48.5]} 20. Bxe7 {[%clk 0:02:17.9]} 20... Qxe7
{[%clk 0:02:49.4]} 21. Rhe1 {[%clk 0:02:16]} 21... Nxe2 {[%clk 0:02:49]} 22.
Rxe2 {[%clk 0:02:15.8]} 22... a4 {[%clk 0:02:48.6]} 23. Nd4 {[%clk 0:02:14.9]}
23... a3 {[%clk 0:02:48.3]} 24. b3 {[%clk 0:02:05.2]} 24... Qf6 {[%clk
0:02:47.1]} 25. Qd3 {[%clk 0:01:57.1]} 25... Qxf4 {[%clk 0:02:39.3]} 26. c3
{[%clk 0:01:56.5]} 26... Qf1+ {[%clk 0:02:35.2]} 0-1

[Event "Early-Titled-Tuesday-Blitz-July-09-2024"]
[Site "Chess.com"]
[Date "2024.07.09"]
[Round "8"]
[White "GrotBchess"]
[Black "bubeliang"]
[Result "0-1"]
[WhiteElo "2596"]
[BlackElo "2807"]
[TimeControl "180+1"]
[EndTime "9:25:50 PDT"]
[Termination "bubeliang won by resignation"]

1. e4 {[%clk 0:03:00.9]} 1... c6 {[%clk 0:02:59.2]} 2. d4 {[%clk 0:02:59.4]}
2... d5 {[%clk 0:03:00.1]} 3. Nd2 {[%clk 0:02:59]} 3... dxe4 {[%clk 0:03:00.2]}
4. Nxe4 {[%clk 0:02:59.8]} 4... Nf6 {[%clk 0:03:00.9]} 5. Nxf6+ {[%clk
0:02:59.3]} 5... exf6 {[%clk 0:03:01.8]} 6. c3 {[%clk 0:02:58.8]} 6... Bd6
{[%clk 0:03:02]} 7. Bd3 {[%clk 0:02:58.5]} 7... O-O {[%clk 0:03:02.9]} 8. Ne2
{[%clk 0:02:58.3]} 8... Re8 {[%clk 0:03:03.8]} 9. O-O {[%clk 0:02:58.1]} 9...
Nd7 {[%clk 0:03:02.4]} 10. Ng3 {[%clk 0:02:56.8]} 10... g6 {[%clk 0:02:59.1]}
11. Qf3 {[%clk 0:02:50.2]} 11... Nf8 {[%clk 0:02:57.9]} 12. Bf4 {[%clk
0:02:47.9]} 12... f5 {[%clk 0:02:54]} 13. Bh6 {[%clk 0:02:43.4]} 13... Ne6
{[%clk 0:02:51.4]} 14. Rfe1 {[%clk 0:02:43.3]} 14... Bd7 {[%clk 0:02:50.9]} 15.
Rad1 {[%clk 0:02:38.4]} 15... Qh4 {[%clk 0:02:44.8]} 16. Bc1 {[%clk 0:02:35.9]}
16... Nf4 {[%clk 0:02:43.8]} 17. Bf1 {[%clk 0:02:29.6]} 17... Be6 {[%clk
0:02:41.5]} 18. c4 {[%clk 0:02:17.8]} 18... Rad8 {[%clk 0:02:40.3]} 19. d5
{[%clk 0:02:09.1]} 19... cxd5 {[%clk 0:02:36.5]} 20. cxd5 {[%clk 0:02:08.5]}
20... Bd7 {[%clk 0:02:36.9]} 21. Rxe8+ {[%clk 0:02:05.6]} 21... Rxe8 {[%clk
0:02:36.4]} 22. Rd4 {[%clk 0:02:01.3]} 22... Nh3+ {[%clk 0:02:34.6]} 23. gxh3
{[%clk 0:01:58.3]} 23... Qxd4 {[%clk 0:02:35.5]} 24. Be3 {[%clk 0:01:55.7]}
24... Qxb2 {[%clk 0:02:34.5]} 25. Bxa7 {[%clk 0:01:47.7]} 25... Qxa2 {[%clk
0:02:33]} 26. Bd4 {[%clk 0:01:42.2]} 26... Qd2 {[%clk 0:02:32.4]} 27. Bc3 {[%clk
0:01:32.2]} 27... Qc1 {[%clk 0:02:32]} 28. h4 {[%clk 0:01:27.3]} 28... Bxg3
{[%clk 0:02:30.2]} 29. hxg3 {[%clk 0:01:22.8]} 29... Bb5 {[%clk 0:02:29.7]} 0-1

[Event "Early-Titled-Tuesday-Blitz-July-09-2024"]
[Site "Chess.com"]
[Date "2024.07.09"]
[Round "8"]
[White "Boorchess"]
[Black "Millerkallpa"]
[Result "1-0"]
[WhiteElo "2552"]
[BlackElo "2251"]
[TimeControl "180+1"]
[EndTime "9:27:05 PDT"]
[Termination "Boorchess won by resignation"]

1. d4 {[%clk 0:03:00.9]} 1... d5 {[%clk 0:02:59.2]} 2. c4 {[%clk 0:03:01]} 2...
c6 {[%clk 0:02:59.4]} 3. cxd5 {[%clk 0:03:01.4]} 3... cxd5 {[%clk 0:02:59.8]} 4.
Nc3 {[%clk 0:03:02.1]} 4... Nf6 {[%clk 0:02:54.2]} 5. f3 {[%clk 0:03:02]} 5...
Nc6 {[%clk 0:02:53]} 6. e4 {[%clk 0:03:02.1]} 6... e5 {[%clk 0:02:51.6]} 7. dxe5
{[%clk 0:03:02.1]} 7... Nxe5 {[%clk 0:02:50]} 8. f4 {[%clk 0:03:02.5]} 8... Nc6
{[%clk 0:02:48.5]} 9. exd5 {[%clk 0:03:02.2]} 9... Nb4 {[%clk 0:02:47.9]} 10.
Bb5+ {[%clk 0:02:56.7]} 10... Bd7 {[%clk 0:02:46.6]} 11. d6 {[%clk 0:02:54.6]}
11... Qb6 {[%clk 0:02:37.3]} 12. Qe2+ {[%clk 0:02:49.5]} 12... Kd8 {[%clk
0:02:35]} 13. Nf3 {[%clk 0:02:28]} 13... Bxd6 {[%clk 0:02:30.4]} 14. Ne5 {[%clk
0:02:21.5]} 14... Re8 {[%clk 0:02:12.4]} 15. Be3 {[%clk 0:01:53.3]} 15... Bc5
{[%clk 0:02:10.1]} 16. Bxc5 {[%clk 0:01:31.1]} 16... Qxc5 {[%clk 0:02:09.3]} 17.
O-O-O {[%clk 0:01:26.8]} 17... Nc6 {[%clk 0:02:05.4]} 18. Bxc6 {[%clk
0:01:25.6]} 18... bxc6 {[%clk 0:02:04.5]} 19. Qd3 {[%clk 0:01:19.8]} 19... Re7
{[%clk 0:02:02]} 20. Kb1 {[%clk 0:01:16.5]} 20... Kc7 {[%clk 0:02:01.7]} 21. Rc1
{[%clk 0:01:08.8]} 21... g6 {[%clk 0:01:55.4]} 22. Qa6 {[%clk 0:00:51.3]} 22...
Bf5+ {[%clk 0:01:34]} 23. Ka1 {[%clk 0:00:50.7]} 23... Rxe5 {[%clk 0:01:27]} 24.
fxe5 {[%clk 0:00:49.5]} 24... Qxe5 {[%clk 0:01:27.6]} 25. Nb5+ {[%clk
0:00:48.7]} 1-0

[Event "Early-Titled-Tuesday-Blitz-July-09-2024"]
[Site "Chess.com"]
[Date "2024.07.09"]
[Round "8"]
[White "el008"]
[Black "KNVB"]
[Result "1-0"]
[WhiteElo "2551"]
[BlackElo "2657"]
[TimeControl "180+1"]
[EndTime "9:27:15 PDT"]
[Termination "el008 won on time"]

1. e4 {[%clk 0:03:00.9]} 1... b6 {[%clk 0:02:57.7]} 2. d4 {[%clk 0:03:00]} 2...
Bb7 {[%clk 0:02:55.8]} 3. Nc3 {[%clk 0:03:00.5]} 3... e6 {[%clk 0:02:44.4]} 4.
Nf3 {[%clk 0:03:00]} 4... Bb4 {[%clk 0:02:33.3]} 5. Bd3 {[%clk 0:02:59.9]} 5...
Nf6 {[%clk 0:02:22.2]} 6. Qe2 {[%clk 0:03:00]} 6... d5 {[%clk 0:02:18.3]} 7.
exd5 {[%clk 0:03:00.9]} 7... Qxd5 {[%clk 0:02:18]} 8. Bd2 {[%clk 0:03:00.9]}
8... Bxc3 {[%clk 0:02:15.9]} 9. Bxc3 {[%clk 0:02:56.8]} 9... Nbd7 {[%clk
0:02:16.1]} 10. Bd2 {[%clk 0:02:56.4]} 10... h6 {[%clk 0:00:17.1]} 11. c4 {[%clk
0:02:46.7]} 11... Qh5 {[%clk 0:00:15.6]} 12. O-O-O {[%clk 0:02:46.5]} 12...
O-O-O {[%clk 0:00:15.4]} 13. h3 {[%clk 0:02:43.8]} 13... Bxf3 {[%clk 0:00:09.5]}
14. gxf3 {[%clk 0:02:44.7]} 14... c5 {[%clk 0:00:08.9]} 15. Bf4 {[%clk
0:02:25.4]} 15... cxd4 {[%clk 0:00:03]} 16. c5 {[%clk 0:02:26.3]} 16... Qxc5+
{[%clk 0:00:03.2]} 17. Kb1 {[%clk 0:02:26.2]} 17... Kb7 {[%clk 0:00:02.9]} 18.
Rc1 {[%clk 0:02:20.9]} 18... Qd5 {[%clk 0:00:02.6]} 19. Rc7+ {[%clk 0:02:12]}
19... Ka8 {[%clk 0:00:03]} 20. Bb5 {[%clk 0:02:12.7]} 20... Qf5+ {[%clk
0:00:02.6]} 21. Ka1 {[%clk 0:02:00.6]} 21... Qxf4 {[%clk 0:00:02.7]} 22. Bc6+
{[%clk 0:02:01.2]} 22... Kb8 {[%clk 0:00:02.6]} 23. Rb7+ {[%clk 0:02:02.1]}
23... Kc8 {[%clk 0:00:03]} 24. Qa6 {[%clk 0:02:03]} 24... Nc5 {[%clk 0:00:01.2]}
25. Qxa7 {[%clk 0:02:01.7]} 1-0

[Event "Early-Titled-Tuesday-Blitz-July-09-2024"]
[Site "Chess.com"]
[Date "2024.07.09"]
[Round "8"]
[White "Alina_Gumerovna"]
[Black "JanMur7"]
[Result "0-1"]
[WhiteElo "2076"]
[BlackElo "2282"]
[TimeControl "180+1"]
[EndTime "9:27:27 PDT"]
[Termination "JanMur7 won on time"]

1. e4 {[%clk 0:03:00]} 1... g6 {[%clk 0:02:53.3]} 2. c4 {[%clk 0:02:59.4]} 2...
c5 {[%clk 0:02:47.9]} 3. Nc3 {[%clk 0:02:58.6]} 3... Nc6 {[%clk 0:02:47]} 4. g3
{[%clk 0:02:58]} 4... Bg7 {[%clk 0:02:47]} 5. Bg2 {[%clk 0:02:54.9]} 5... e6
{[%clk 0:02:47.4]} 6. Nge2 {[%clk 0:02:48.7]} 6... Nge7 {[%clk 0:02:46.5]} 7.
O-O {[%clk 0:02:47]} 7... O-O {[%clk 0:02:46.1]} 8. a3 {[%clk 0:02:43]} 8... b6
{[%clk 0:02:43.7]} 9. Rb1 {[%clk 0:02:32.2]} 9... a5 {[%clk 0:02:41]} 10. Nb5
{[%clk 0:02:29.3]} 10... Rb8 {[%clk 0:02:25]} 11. d4 {[%clk 0:02:08.4]} 11...
cxd4 {[%clk 0:02:22.7]} 12. Nexd4 {[%clk 0:02:07.5]} 12... Nxd4 {[%clk
0:02:16.8]} 13. Nxd4 {[%clk 0:02:06.3]} 13... Ba6 {[%clk 0:02:17.2]} 14. b3
{[%clk 0:02:01]} 14... d5 {[%clk 0:02:16.1]} 15. Nb5 {[%clk 0:01:38.1]} 15...
dxc4 {[%clk 0:02:11.3]} 16. bxc4 {[%clk 0:01:39]} 16... Rc8 {[%clk 0:02:01.5]}
17. Be3 {[%clk 0:00:49.7]} 17... Rxc4 {[%clk 0:01:56.9]} 18. Qxd8 {[%clk
0:00:45.4]} 18... Rxd8 {[%clk 0:01:57.8]} 19. Bxb6 {[%clk 0:00:42.6]} 19... Rb8
{[%clk 0:01:56.1]} 20. Nd6 {[%clk 0:00:39.2]} 20... Rc6 {[%clk 0:01:55.1]} 21.
Rfd1 {[%clk 0:00:02.1]} 21... Rcxb6 {[%clk 0:01:52.5]} 22. Rxb6 {[%clk
0:00:01.1]} 22... Rxb6 {[%clk 0:01:53.2]} 0-1

[Event "Early-Titled-Tuesday-Blitz-July-09-2024"]
[Site "Chess.com"]
[Date "2024.07.09"]
[Round "8"]
[White "ploxoi"]
[Black "Timerkhanov"]
[Result "0-1"]
[WhiteElo "2476"]
[BlackElo "2666"]
[TimeControl "180+1"]
[EndTime "9:27:41 PDT"]
[Termination "Timerkhanov won by resignation"]

1. d4 {[%clk 0:03:00.9]} 1... d5 {[%clk 0:02:59.8]} 2. c4 {[%clk 0:03:01]} 2...
c6 {[%clk 0:02:59.2]} 3. Nf3 {[%clk 0:03:01]} 3... Nf6 {[%clk 0:02:59.4]} 4. e3
{[%clk 0:03:01.3]} 4... a6 {[%clk 0:02:58.8]} 5. Nbd2 {[%clk 0:03:01.1]} 5...
Bf5 {[%clk 0:02:58.7]} 6. Nh4 {[%clk 0:02:56.4]} 6... Be6 {[%clk 0:02:56.7]} 7.
b3 {[%clk 0:02:54.7]} 7... g6 {[%clk 0:02:55.5]} 8. Be2 {[%clk 0:02:53]} 8...
Bg7 {[%clk 0:02:56]} 9. O-O {[%clk 0:02:51.8]} 9... O-O {[%clk 0:02:56.3]} 10.
a4 {[%clk 0:02:52]} 10... c5 {[%clk 0:02:56.6]} 11. Bb2 {[%clk 0:02:48.4]} 11...
cxd4 {[%clk 0:02:56.3]} 12. Bxd4 {[%clk 0:02:48.6]} 12... Nc6 {[%clk 0:02:56.6]}
13. Bb2 {[%clk 0:02:47]} 13... Rc8 {[%clk 0:02:48.4]} 14. Nhf3 {[%clk 0:02:24]}
14... h6 {[%clk 0:02:30]} 15. Nd4 {[%clk 0:02:18.2]} 15... Nxd4 {[%clk
0:02:27.3]} 16. Bxd4 {[%clk 0:02:19.1]} 16... dxc4 {[%clk 0:02:18.1]} 17. Bxc4
{[%clk 0:02:17.6]} 17... Bxc4 {[%clk 0:02:15.6]} 18. Nxc4 {[%clk 0:02:18.5]}
18... b5 {[%clk 0:02:15]} 19. axb5 {[%clk 0:02:08.9]} 19... axb5 {[%clk
0:02:15.9]} 20. Na3 {[%clk 0:02:05.3]} 20... Qd5 {[%clk 0:02:14.1]} 21. Bxf6
{[%clk 0:01:57.4]} 21... Qxd1 {[%clk 0:02:12.2]} 22. Raxd1 {[%clk 0:01:58.3]}
22... Bxf6 {[%clk 0:02:12.2]} 23. Nxb5 {[%clk 0:01:58.9]} 23... Rb8 {[%clk
0:02:12.5]} 24. Nd4 {[%clk 0:01:43.5]} 24... e5 {[%clk 0:02:11.4]} 25. Nc6
{[%clk 0:01:29.6]} 25... Rxb3 {[%clk 0:02:10.6]} 26. Rd6 {[%clk 0:01:30.2]}
26... Kg7 {[%clk 0:02:08.9]} 27. e4 {[%clk 0:01:30]} 27... Rb6 {[%clk
0:02:05.9]} 28. f3 {[%clk 0:00:55.8]} 28... Bg5 {[%clk 0:01:50.1]} 29. Kf2
{[%clk 0:00:17.6]} 29... Rc8 {[%clk 0:01:47]} 30. Na7 {[%clk 0:00:17]} 30...
Rc2+ {[%clk 0:01:45.6]} 0-1

[Event "Early-Titled-Tuesday-Blitz-July-09-2024"]
[Site "Chess.com"]
[Date "2024.07.09"]
[Round "8"]
[White "boguszp"]
[Black "Sofia_Blokhin"]
[Result "0-1"]
[WhiteElo "1951"]
[BlackElo "2190"]
[TimeControl "180+1"]
[EndTime "9:27:43 PDT"]
[Termination "Sofia_Blokhin won by resignation"]

1. d4 {[%clk 0:02:57.9]} 1... f5 {[%clk 0:02:59.4]} 2. Nf3 {[%clk 0:02:57.4]}
2... Nf6 {[%clk 0:02:58]} 3. Bf4 {[%clk 0:02:57.3]} 3... g6 {[%clk 0:02:58]} 4.
e3 {[%clk 0:02:57.8]} 4... Bg7 {[%clk 0:02:58.3]} 5. h3 {[%clk 0:02:58.4]} 5...
O-O {[%clk 0:02:58.2]} 6. Be2 {[%clk 0:02:58.9]} 6... d6 {[%clk 0:02:58.7]} 7.
O-O {[%clk 0:02:59.3]} 7... Ne4 {[%clk 0:02:55.6]} 8. Nbd2 {[%clk 0:02:59.3]}
8... Nc6 {[%clk 0:02:55.4]} 9. Nxe4 {[%clk 0:02:58.7]} 9... fxe4 {[%clk
0:02:54.7]} 10. Ng5 {[%clk 0:02:57.4]} 10... d5 {[%clk 0:02:51.2]} 11. c4 {[%clk
0:02:57.1]} 11... e6 {[%clk 0:02:50.4]} 12. Bg4 {[%clk 0:02:47.6]} 12... Nxd4
{[%clk 0:02:42.5]} 13. Bxc7 {[%clk 0:02:40]} 13... Qxg5 {[%clk 0:02:34.3]} 14.
exd4 {[%clk 0:02:39.4]} 14... h5 {[%clk 0:02:26.7]} 15. f4 {[%clk 0:02:27.4]}
15... Qe7 {[%clk 0:02:23]} 16. Bxh5 {[%clk 0:02:15.3]} 16... gxh5 {[%clk
0:02:19.6]} 17. Be5 {[%clk 0:02:09.2]} 17... Qh4 {[%clk 0:02:11.1]} 18. Qb3
{[%clk 0:01:58.8]} 18... Bxe5 {[%clk 0:02:02.2]} 19. fxe5 {[%clk 0:01:55.5]}
19... dxc4 {[%clk 0:01:45.6]} 20. Qxc4 {[%clk 0:01:53.9]} 20... Bd7 {[%clk
0:01:45.6]} 21. Rae1 {[%clk 0:01:31.1]} 21... Rac8 {[%clk 0:01:42.9]} 22. Qb3
{[%clk 0:01:30.2]} 22... b6 {[%clk 0:01:18.1]} 23. Rf6 {[%clk 0:01:18.3]} 23...
Qxe1+ {[%clk 0:01:14.6]} 24. Kh2 {[%clk 0:01:15.5]} 24... Rxf6 {[%clk
0:01:12.9]} 25. exf6 {[%clk 0:01:14.8]} 25... Qf2 {[%clk 0:01:08.5]} 26. d5
{[%clk 0:00:50.3]} 26... Qf4+ {[%clk 0:01:06.3]} 27. g3 {[%clk 0:00:45.9]} 27...
Qf2+ {[%clk 0:01:04.4]} 28. Kh1 {[%clk 0:00:45.7]} 28... Rc1+ {[%clk 0:01:03.5]}
0-1

[Event "Early-Titled-Tuesday-Blitz-July-09-2024"]
[Site "Chess.com"]
[Date "2024.07.09"]
[Round "8"]
[White "Nitzan_Steinberg"]
[Black "vladjianu"]
[Result "1-0"]
[WhiteElo "2870"]
[BlackElo "2609"]
[TimeControl "180+1"]
[EndTime "9:27:44 PDT"]
[Termination "Nitzan_Steinberg won by resignation"]

1. e4 {[%clk 0:03:00.9]} 1... c6 {[%clk 0:02:54.9]} 2. Nf3 {[%clk 0:03:00.6]}
2... d5 {[%clk 0:02:53.8]} 3. exd5 {[%clk 0:03:01.5]} 3... cxd5 {[%clk
0:02:54.7]} 4. Ne5 {[%clk 0:03:02]} 4... Nc6 {[%clk 0:02:44.1]} 5. d4 {[%clk
0:03:02.5]} 5... a6 {[%clk 0:02:39.9]} 6. c3 {[%clk 0:03:02.4]} 6... Nf6 {[%clk
0:02:37.3]} 7. Bd3 {[%clk 0:03:02.1]} 7... g6 {[%clk 0:02:34.4]} 8. O-O {[%clk
0:03:01.9]} 8... Bg7 {[%clk 0:02:35]} 9. Re1 {[%clk 0:03:00.5]} 9... O-O {[%clk
0:02:34.7]} 10. Nd2 {[%clk 0:03:00.3]} 10... Bf5 {[%clk 0:02:33.9]} 11. Bxf5
{[%clk 0:02:47.7]} 11... gxf5 {[%clk 0:02:34.8]} 12. Nf1 {[%clk 0:02:19.5]}
12... e6 {[%clk 0:02:33.3]} 13. Nd3 {[%clk 0:02:15.3]} 13... Kh8 {[%clk
0:02:32.1]} 14. Re3 {[%clk 0:02:11.1]} 14... Ne4 {[%clk 0:02:25.9]} 15. Rh3
{[%clk 0:02:09.7]} 15... Qf6 {[%clk 0:02:20]} 16. f3 {[%clk 0:01:55.7]} 16...
Nd6 {[%clk 0:02:12.4]} 17. Ng3 {[%clk 0:01:53.4]} 17... Rg8 {[%clk 0:02:07.4]}
18. Nh5 {[%clk 0:01:51.6]} 18... Qe7 {[%clk 0:02:07.3]} 19. Bf4 {[%clk
0:01:44.8]} 19... Nc4 {[%clk 0:01:57]} 20. Qe2 {[%clk 0:01:39.4]} 20... Bf6
{[%clk 0:01:52.5]} 21. b3 {[%clk 0:01:35]} 21... Nb6 {[%clk 0:01:45.1]} 22. Ne5
{[%clk 0:01:28.7]} 22... Bg7 {[%clk 0:01:02.7]} 23. Bg5 {[%clk 0:01:24.2]} 23...
Qf8 {[%clk 0:00:56.3]} 24. Nf6 {[%clk 0:01:06.4]} 24... Bxf6 {[%clk 0:00:44.9]}
25. Bxf6+ {[%clk 0:01:06.3]} 25... Rg7 {[%clk 0:00:45.8]} 26. Rg3 {[%clk
0:01:00.9]} 1-0

[Event "Early-Titled-Tuesday-Blitz-July-09-2024"]
[Site "Chess.com"]
[Date "2024.07.09"]
[Round "8"]
[White "Bauman_Guy"]
[Black "Adar_07"]
[Result "1-0"]
[WhiteElo "2953"]
[BlackElo "2758"]
[TimeControl "180+1"]
[EndTime "9:27:45 PDT"]
[Termination "Bauman_Guy won by resignation"]

1. e4 {[%clk 0:03:00.9]} 1... c6 {[%clk 0:02:58.2]} 2. d4 {[%clk 0:03:00.9]}
2... d5 {[%clk 0:02:58.8]} 3. e5 {[%clk 0:03:01.3]} 3... Bf5 {[%clk 0:02:59.1]}
4. Bd3 {[%clk 0:03:01.4]} 4... Bxd3 {[%clk 0:02:59]} 5. Qxd3 {[%clk 0:03:02.3]}
5... e6 {[%clk 0:02:59.5]} 6. Ne2 {[%clk 0:03:02.6]} 6... c5 {[%clk 0:02:57.4]}
7. c3 {[%clk 0:03:02.4]} 7... Nc6 {[%clk 0:02:57.5]} 8. a3 {[%clk 0:03:02.7]}
8... Nge7 {[%clk 0:02:56.3]} 9. Nd2 {[%clk 0:03:02.5]} 9... Nf5 {[%clk
0:02:55.5]} 10. b4 {[%clk 0:02:58.3]} 10... cxd4 {[%clk 0:02:53.9]} 11. cxd4
{[%clk 0:02:58]} 11... Qb6 {[%clk 0:02:54.6]} 12. Nf3 {[%clk 0:02:58.2]} 12...
Rc8 {[%clk 0:02:51.9]} 13. O-O {[%clk 0:02:58.3]} 13... Be7 {[%clk 0:02:48.2]}
14. Kh1 {[%clk 0:02:56.9]} 14... h5 {[%clk 0:02:47.2]} 15. Ng3 {[%clk
0:02:55.5]} 15... Nfxd4 {[%clk 0:02:46.5]} 16. Be3 {[%clk 0:02:52.6]} 16... Qb5
{[%clk 0:02:46.1]} 17. Qxb5 {[%clk 0:02:42.2]} 17... Nxb5 {[%clk 0:02:47]} 18.
a4 {[%clk 0:02:43.1]} 18... Nc3 {[%clk 0:02:45.7]} 19. b5 {[%clk 0:02:43.5]}
19... Nd8 {[%clk 0:02:24]} 20. Rfc1 {[%clk 0:02:41.1]} 20... Kd7 {[%clk
0:02:04.9]} 21. Bxa7 {[%clk 0:02:35.5]} 21... h4 {[%clk 0:02:05.1]} 22. Nf1
{[%clk 0:02:32.8]} 22... h3 {[%clk 0:02:01.1]} 23. Bd4 {[%clk 0:02:27.5]} 23...
hxg2+ {[%clk 0:02:00.6]} 24. Kxg2 {[%clk 0:02:27.5]} 24... Ne2 {[%clk
0:01:49.9]} 25. Rxc8 {[%clk 0:02:25.6]} 25... Kxc8 {[%clk 0:01:50.8]} 26. Be3
{[%clk 0:02:21.5]} 26... Kb8 {[%clk 0:01:43.7]} 27. N1d2 {[%clk 0:01:59.6]}
27... f5 {[%clk 0:01:31.8]} 28. Nb3 {[%clk 0:01:52.5]} 28... f4 {[%clk
0:01:22.9]} 29. Bd2 {[%clk 0:01:50.1]} 29... g5 {[%clk 0:01:16.3]} 30. h3 {[%clk
0:01:35.4]} 30... Nf7 {[%clk 0:01:11.2]} 31. Re1 {[%clk 0:01:35.3]} 31... Rc8
{[%clk 0:00:38.6]} 32. Rxe2 {[%clk 0:01:32.8]} 32... Rc4 {[%clk 0:00:38.8]} 33.
a5 {[%clk 0:01:30.9]} 33... Nh6 {[%clk 0:00:39.1]} 34. Nbd4 {[%clk 0:01:28.6]}
1-0

[Event "Early-Titled-Tuesday-Blitz-July-09-2024"]
[Site "Chess.com"]
[Date "2024.07.09"]
[Round "8"]
[White "Bykov_Egor"]
[Black "kacperkarwowski"]
[Result "1-0"]
[WhiteElo "2688"]
[BlackElo "2544"]
[TimeControl "180+1"]
[EndTime "9:27:57 PDT"]
[Termination "Bykov_Egor won by resignation"]

1. Nf3 {[%clk 0:03:00.9]} 1... g6 {[%clk 0:02:54.8]} 2. g3 {[%clk 0:03:00.6]}
2... Bg7 {[%clk 0:02:55.3]} 3. Bg2 {[%clk 0:03:01]} 3... e5 {[%clk 0:02:55.6]}
4. O-O {[%clk 0:03:00.1]} 4... e4 {[%clk 0:02:54.2]} 5. Ne1 {[%clk 0:02:59.4]}
5... d5 {[%clk 0:02:54.7]} 6. d3 {[%clk 0:02:55.3]} 6... f5 {[%clk 0:02:52.8]}
7. c4 {[%clk 0:02:49.1]} 7... Ne7 {[%clk 0:02:46.3]} 8. cxd5 {[%clk 0:02:42.9]}
8... Qxd5 {[%clk 0:02:43.6]} 9. Nc3 {[%clk 0:02:39.1]} 9... Bxc3 {[%clk
0:02:43.2]} 10. bxc3 {[%clk 0:02:40]} 10... Nbc6 {[%clk 0:02:42]} 11. Qa4 {[%clk
0:02:32.9]} 11... Bd7 {[%clk 0:02:36]} 12. dxe4 {[%clk 0:02:30.3]} 12... fxe4
{[%clk 0:02:25.5]} 13. Qxe4 {[%clk 0:02:31.2]} 13... Qh5 {[%clk 0:02:24.2]} 14.
Ba3 {[%clk 0:02:20.6]} 14... Bf5 {[%clk 0:02:17.8]} 15. Qa4 {[%clk 0:02:05.4]}
15... O-O {[%clk 0:02:13.5]} 16. Bxc6 {[%clk 0:01:39.9]} 16... Nxc6 {[%clk
0:02:13.2]} 17. Bxf8 {[%clk 0:01:40.4]} 17... Rxf8 {[%clk 0:02:14]} 18. Nf3
{[%clk 0:01:37.1]} 18... Bg4 {[%clk 0:02:11]} 19. Rfe1 {[%clk 0:01:25.3]} 19...
Kg7 {[%clk 0:01:53.8]} 20. Qe4 {[%clk 0:00:55.9]} 20... Bf5 {[%clk 0:01:14.3]}
21. Qh4 {[%clk 0:00:55]} 21... Bg4 {[%clk 0:01:07]} 22. Qxh5 {[%clk 0:00:54.4]}
22... Bxh5 {[%clk 0:01:07.9]} 23. Rad1 {[%clk 0:00:50.9]} 23... Bxf3 {[%clk
0:00:59.2]} 24. exf3 {[%clk 0:00:51]} 24... Rxf3 {[%clk 0:01:00.1]} 25. Rd7+
{[%clk 0:00:51.4]} 25... Kh6 {[%clk 0:01:00.6]} 26. Re3 {[%clk 0:00:47.6]} 26...
Rf5 {[%clk 0:00:57.7]} 27. Rxc7 {[%clk 0:00:47.7]} 27... Rb5 {[%clk 0:00:46.9]}
28. h4 {[%clk 0:00:47.4]} 1-0